bitfinex-derivatives/quotes_BTCF0:USTF0_20250218
["timestamp","ask_amount","ask_price","bid_price","bid_amount"]
[1739917887539,0.2095706,95479.0,95478.0,0.3608]
[1739917887846,0.2095706,95479.0,95478.0,0.3658]
[1739917888246,0.2095706,95479.0,95478.0,0.3618]
[1739917889944,0.2125706,95479.0,95478.0,0.3608]
[1739917890446,0.2095706,95479.0,95478.0,0.3608]
[1739917890647,0.2135706,95479.0,95478.0,0.3608]
[1739917895539,0.2135706,95479.0,95478.0,0.4207]
[1739917896647,0.003,95479.0,95478.0,0.4207]
[1739917897249,0.0621,95484.0,95478.0,0.4217]
[1739917897751,0.2095643,95482.0,95478.0,0.4217]
[1739917898650,0.219,95489.0,95478.0,0.4217]
[1739917898651,0.219,95489.0,95484.0,0.2095593]
[1739917898851,0.0627,95488.0,95484.0,0.2095593]
[1739917899157,0.0627,95488.0,95478.0,0.42226]
[1739917899460,0.2095537,95487.0,95478.0,0.4217]
[1739917899655,0.2095537,95487.0,95479.0,0.2095703]
[1739917901446,0.2095537,95487.0,95479.0,0.02619927]
[1739917901650,0.2095537,95487.0,95481.0,0.209566]
[1739917902051,0.2095537,95487.0,95478.0,0.42126]
[1739917902255,0.2095537,95487.0,95482.0,0.2095636]
[1739917902755,0.2105537,95487.0,95482.0,0.2095636]
[1739917903248,0.2095537,95487.0,95482.0,0.2095636]
[1739917903447,0.2125537,95487.0,95482.0,0.2095636]
[1739917903851,0.2095537,95487.0,95478.0,0.448261]
[1739917904051,0.2125537,95487.0,95484.0,0.2095595]
[1739917904452,0.2095537,95487.0,95484.0,0.2095595]
[1739917904756,0.2125537,95487.0,95484.0,0.2095595]
[1739917905946,0.2125537,95487.0,95485.0,0.0611]
[1739917906444,0.2125537,95487.0,95486.0,0.061]
[1739917906651,0.2115537,95487.0,95486.0,0.061]
[1739917907155,0.2135537,95487.0,95486.0,0.061]
[1739917907358,0.004,95487.0,95486.0,0.6313553]
[1739917910450,0.004,95487.0,95486.0,0.4218]
[1739917914261,0.2095511,95488.0,95486.0,0.4218]
[1739917914447,0.004,95487.0,95486.0,0.4218]
[1739917914955,0.03080392,95491.0,95486.0,0.4218]
[1739917915154,0.0639,95496.0,95486.0,0.4218]
[1739917915758,0.3608,95529.0,95518.0,0.0523709]
[1739917915962,0.00064,95525.0,95524.0,0.2094719]
[1739917916162,0.08300867,95540.0,95523.0,0.3608]
[1739917916355,0.11000175,95540.0,95532.0,0.3608]
[1739917916556,0.08300867,95540.0,95535.0,0.209447]
[1739917916769,0.08300867,95545.0,95538.0,0.2094407]
[1739917917056,0.10920184,95545.0,95541.0,0.3608]
[1739917917260,0.3608,95567.0,95541.0,0.3608]
[1739917917458,0.08300867,95560.0,95552.0,0.3608]
[1739917917657,0.2094074,95554.0,95552.0,0.3608]
[1739917917856,0.08300867,95560.0,95552.0,0.3608]
[1739917918058,0.2094028,95556.0,95552.0,0.3608]
[1739917918260,0.15534805,95564.0,95558.0,0.2093955]
[1739917918261,0.02694805,95564.0,95558.0,0.2093955]
[1739917918564,0.08300867,95568.0,95552.0,0.3608]
[1739917918764,0.08300867,95562.0,95552.0,0.3608]
[1739917919059,0.2094063,95554.0,95552.0,0.3608]
[1739917920462,0.006,95554.0,95552.0,0.3618]
[1739917920662,0.1048,95553.0,95552.0,0.3618]
[1739917920863,0.0628,95561.0,95552.0,0.3608]
[1739917921062,0.1108,95554.0,95552.0,0.3618]
[1739917921757,0.006,95554.0,95552.0,0.3618]
[1739917922864,0.1048,95555.0,95552.0,0.3618]
[1739917924264,0.004,95554.0,95552.0,0.3618]
[1739917925964,0.1098,95555.0,95552.0,0.3618]
[1739917926762,0.1098,95555.0,95552.0,0.3608]
[1739917926968,0.005,95554.0,95552.0,0.3618]
[1739917929563,0.3192046,95555.0,95552.0,0.3618]
[1739917929768,0.2144046,95555.0,95552.0,0.3618]
[1739917930165,0.005,95554.0,95552.0,0.3618]
[1739917930563,0.005,95554.0,95552.0,0.001]
[1739917930870,0.214407,95554.0,95552.0,0.001]
[1739917931369,0.005,95555.0,95552.0,0.001]
[1739917932166,0.2144041,95555.0,95552.0,0.001]
[1739917932773,0.005,95555.0,95552.0,0.0612]
[1739917933374,0.005,95554.0,95552.0,0.0612]
[1739917934970,0.2094083,95553.0,95552.0,0.0612]
[1739917935976,0.2094083,95553.0,95552.0,0.0602]
[1739917936176,0.2094083,95553.0,95552.0,0.0612]
[1739917936571,0.2144083,95553.0,95552.0,0.0612]
[1739917937381,0.2144083,95553.0,95552.0,0.001]
[1739917942585,0.219,95561.0,95552.0,0.1939]
[1739917942770,0.4283908,95561.0,95560.0,0.3608]
[1739917942974,0.219,95561.0,95552.0,0.129]
[1739917943174,0.10476,95560.0,95552.0,0.129]
[1739917943369,0.2094066,95554.0,95552.0,0.129]
[1739917944788,0.2094066,95554.0,95552.0,0.128]
[1739917944995,0.2144066,95554.0,95552.0,0.129]
[1739917946993,0.2144066,95554.0,95552.0,0.001]
[1739917947199,0.0615,95553.0,95552.0,0.001]
[1739917947386,0.1283,95553.0,95552.0,0.001]
[1739917947588,0.63163656,95553.0,95552.0,0.001]
[1739917948797,0.2094105,95552.0,95551.0,0.00015701]
[1739917948995,0.2094215,95547.0,95546.0,0.18583537]
[1739917949193,0.71275806,95547.0,95546.0,0.18583537]
[1739917949693,0.71175806,95547.0,95546.0,0.18583537]
[1739917949998,0.93075806,95547.0,95546.0,0.08493537]
[1739917950194,0.2094237,95546.0,95544.0,0.24858929]
[1739917950401,0.3608,95545.0,95544.0,0.24858929]
[1739917950589,0.86413656,95545.0,95544.0,0.24858929]
[1739917950993,0.86413656,95545.0,95544.0,0.04678929]
[1739917951197,0.2094566,95531.0,95530.0,0.3325154]
[1739917951502,0.00015615,95556.0,95555.0,0.209404]
[1739917951696,0.00015615,95556.0,95555.0,0.7216]
[1739917951901,0.50445271,95556.0,95555.0,0.7216]
[1739917953395,0.50445271,95556.0,95555.0,2.2216]
[1739917953592,0.11179615,95556.0,95555.0,2.2226]
[1739917953793,0.94828528,95570.0,95555.0,2.2226]
[1739917953794,0.94760528,95570.0,95555.0,2.2226]
[1739917954104,0.94760528,95570.0,95569.0,0.3608]
[1739917954401,1.34726184,95570.0,95569.0,0.3608]
[1739917954605,1.45190184,95570.0,95569.0,0.3608]
[1739917954905,1.45190184,95570.0,95569.0,1.8608]
[1739917955803,1.05224528,95570.0,95569.0,1.8608]
[1739917955997,0.94760528,95570.0,95569.0,1.8608]
[1739917956197,0.50437214,95570.0,95569.0,1.8608]
[1739917956399,0.50537214,95570.0,95569.0,1.8618]
[1739917956596,0.61001214,95570.0,95569.0,0.3618]
[1739917956802,0.50537214,95570.0,95545.0,0.3608]
[1739917956991,0.39965656,95547.0,95534.0,0.3608]
[1739917957195,0.39965656,95556.0,95542.0,0.38376535]
[1739917957391,0.50537214,95570.0,95554.0,0.2094059]
[1739917957702,0.39881357,95558.0,95554.0,0.2094059]
[1739917958206,0.50437214,95570.0,95558.0,0.209397]
[1739917958407,0.50437214,95570.0,95566.0,0.3608]
[1739917958901,0.39881357,95567.0,95566.0,0.3608]
[1739917959899,0.39881357,95567.0,95566.0,1.8608]
[1739917960296,0.39881357,95567.0,95566.0,0.3608]
[1739917960613,0.39881357,95567.0,95554.0,0.001]
[1739917960614,0.209404,95555.0,95554.0,0.001]
[1739917960798,0.39881357,95555.0,95554.0,1.501]
[1739917961109,0.39481357,95555.0,95554.0,1.5]
[1739917961599,0.39081357,95555.0,95554.0,1.5]
[1739917963098,0.39181357,95555.0,95554.0,1.507]
[1739917964008,0.39181357,95555.0,95554.0,1.506]
[1739917964415,0.39081357,95555.0,95554.0,1.507]
[1739917966704,0.39181357,95555.0,95554.0,1.506]
[1739917967099,0.39181357,95555.0,95554.0,1.5]
[1739917967301,0.39181357,95555.0,95554.0,1.507]
[1739917967802,0.39181357,95555.0,95554.0,1.505]
[1739917971615,0.39181357,95555.0,95554.0,1.7144062]
[1739917972114,0.001,95555.0,95554.0,1.7144062]
[1739917973307,0.50437214,95570.0,95554.0,1.5]
[1739917973514,0.001,95555.0,95554.0,0.2154062]
[1739917973714,0.001,95555.0,95554.0,0.9370062]
[1739917974016,0.001,95555.0,95554.0,2.4370062]
[1739917974506,0.50537214,95570.0,95567.0,0.2093759]
[1739917974710,0.50537214,95570.0,95569.0,0.3608]
[1739917975103,0.89618571,95570.0,95569.0,0.3608]
[1739917976107,0.89518571,95570.0,95569.0,0.3608]
[1739917976713,0.89518571,95570.0,95569.0,0.3628]
[1739917980019,0.89518571,95570.0,95569.0,0.5721733]
[1739917980417,0.89518571,95570.0,95569.0,0.38661526]
[1739917980623,1.10455681,95570.0,95569.0,0.3628]
[1739917980926,1.10455681,95570.0,95569.0,1.8628]
[1739917982112,1.10455681,95570.0,95569.0,0.3628]
[1739917982513,1.10455681,95570.0,95569.0,0.3608]
[1739917982712,1.10455681,95570.0,95569.0,0.3628]
[1739917983119,1.10455681,95570.0,95569.0,0.3618]
[1739917983820,1.10455681,95570.0,95569.0,0.3608]
[1739917984025,1.10455681,95570.0,95569.0,0.3628]
[1739917985318,0.89518571,95570.0,95569.0,0.3628]
[1739917985617,0.89518571,95570.0,95569.0,0.3618]
[1739917987426,0.96148571,95570.0,95569.0,0.3618]
[1739917988620,0.96148571,95570.0,95569.0,0.3608]
[1739917988821,0.96148571,95570.0,95569.0,0.3678]
[1739917989026,1.17085681,95570.0,95569.0,0.3678]
[1739917989222,1.17085681,95570.0,95569.0,0.3608]
[1739917989519,1.17085681,95570.0,95569.0,0.3678]
[1739917992428,1.17085681,95570.0,95569.0,0.3608]
[1739917993025,1.17385681,95570.0,95569.0,0.3608]
[1739918000131,0.9908028,95570.0,95569.0,0.3608]
[1739918000824,0.99084627,95570.0,95569.0,0.3608]
[1739918002031,0.78147517,95570.0,95554.0,0.3608]
[1739918002236,0.3608,95547.0,95507.0,0.37027537]
[1739918002425,0.75161357,95519.0,95507.0,0.37027537]
[1739918002626,0.75161357,95519.0,95508.0,0.02109191]
[1739918002829,0.3608,95509.0,95507.0,0.37027537]
[1739918003127,0.38881357,95509.0,95507.0,0.39052555]
[1739918003433,0.3588,95509.0,95507.0,0.36971537]
[1739918004139,0.23952057,95508.0,95507.0,0.36971537]
[1739918005733,0.23852057,95508.0,95507.0,0.36971537]
[1739918005932,0.23852057,95508.0,95500.0,0.0654]
[1739918005933,0.02901357,95508.0,95500.0,0.0654]
[1739918006136,0.38981357,95501.0,95500.0,0.0654]
[1739918006337,0.59433597,95501.0,95500.0,0.0654]
[1739918006530,0.2095268,95499.0,95498.0,0.00015701]
[1739918006730,0.23854037,95499.0,95498.0,0.00015701]
[1739918006926,0.23254037,95499.0,95498.0,0.00015701]
[1739918008134,0.2530592,95499.0,95498.0,0.00015701]
[1739918008733,0.2540592,95499.0,95498.0,0.00015701]
[1739918009235,0.2550592,95499.0,95498.0,0.00015701]
[1739918010732,0.23454037,95499.0,95498.0,1.50015701]
[1739918011334,0.23454037,95499.0,95498.0,0.00015701]
[1739918015437,0.23254037,95499.0,95498.0,0.00015701]
[1739918015637,0.23454037,95499.0,95498.0,0.00015701]
[1739918018342,0.23554037,95499.0,95498.0,0.00015701]
[1739918019946,0.23354037,95499.0,95498.0,0.00015701]
[1739918024450,0.23554037,95499.0,95498.0,0.00015701]
[1739918032653,0.23654037,95499.0,95498.0,0.00015701]
[1739918033254,0.03301357,95499.0,95498.0,0.00015701]
[1739918033759,0.24254037,95499.0,95498.0,0.00015701]
[1739918034256,0.96414037,95499.0,95498.0,0.00015701]
[1739918057571,0.75461357,95499.0,95476.0,0.2095769]
[1739918057777,0.7216,95477.0,95476.0,0.2095769]
[1739918059174,0.7216,95477.0,95470.0,0.24557364]
[1739918059175,0.2095882,95471.0,95470.0,0.24557364]
[1739918059369,0.02901357,95471.0,95467.0,0.00015709]
[1739918059568,0.209608,95462.0,95453.0,0.0644]
[1739918059879,0.59942157,95462.0,95453.0,0.0644]
[1739918060074,0.38981357,95462.0,95453.0,0.0644]
[1739918060267,0.59943907,95454.0,95453.0,0.0644]
[1739918060570,0.61978892,95454.0,95453.0,0.0644]
[1739918061674,0.61978892,95454.0,95450.0,0.31177088]
[1739918061881,0.02901357,95451.0,95450.0,0.31177088]
[1739918063881,0.03001357,95451.0,95450.0,0.31177088]
[1739918064781,0.2096378,95449.0,95445.0,0.0613]
[1739918064968,0.38981357,95446.0,95445.0,0.0613]
[1739918065783,0.38981357,95446.0,95444.0,0.00015709]
[1739918066086,0.02901357,95445.0,95444.0,0.00015709]
[1739918067781,0.2096543,95441.0,95430.0,0.2096777]
[1739918067982,0.3608,95431.0,95430.0,0.2096777]
[1739918068981,0.40604299,95431.0,95421.0,0.00015718]
[1739918069182,0.38981357,95422.0,95410.0,0.01682679]
[1739918069484,0.02901357,95416.0,95411.0,0.0612]
[1739918069679,0.3608,95412.0,95411.0,0.0612]
[1739918069886,0.3608,95412.0,95401.0,0.0622]
[1739918069887,0.209741,95402.0,95376.0,0.2097948]
[1739918070080,0.51479504,95412.0,95382.0,0.1234]
[1739918070081,0.38981357,95399.0,95382.0,0.1234]
[1739918070272,0.38981357,95399.0,95381.0,0.37027537]
[1739918070273,0.3608,95383.0,95381.0,0.37027537]
[1739918070478,0.59959737,95382.0,95381.0,0.36971537]
[1739918070780,0.6158267,95382.0,95381.0,0.36987255]
[1739918071080,0.6158267,95382.0,95381.0,0.07936112]
[1739918073382,0.2098124,95369.0,95368.0,0.54426232]
[1739918073591,0.59962597,95369.0,95366.0,0.00064]
[1739918073885,0.209825,95364.0,95362.0,0.00157278]
[1739918074088,0.02901357,95363.0,95362.0,0.00157278]
[1739918075087,0.02901357,95363.0,95353.0,0.00010505]
[1739918075294,0.2098564,95349.0,95322.0,0.00157359]
[1739918075489,0.3608,95327.0,95322.0,0.00157359]
[1739918076690,0.3608,95327.0,95323.0,0.2099135]
[1739918076691,0.38981357,95327.0,95323.0,0.2099135]
[1739918077278,0.38981357,95327.0,95322.0,0.00157359]
[1739918077584,0.39081357,95327.0,95322.0,0.00157359]
[1739918078788,0.02901357,95323.0,95322.0,0.00157359]
[1739918079085,0.02901357,95323.0,95322.0,0.21148939]
[1739918080183,0.03001357,95323.0,95322.0,0.21148939]
[1739918081490,0.001,95323.0,95322.0,0.21148939]
[1739918081798,0.3608,95334.0,95322.0,0.00157359]
[1739918082100,0.00015727,95336.0,95335.0,0.2098872]
[1739918082292,0.3608,95348.0,95347.0,0.2098608]
[1739918082695,0.3608,95357.0,95353.0,0.2098472]
[1739918082890,0.02901357,95354.0,95340.0,0.12652503]
[1739918083090,0.02901357,95355.0,95340.0,0.12652503]
[1739918083289,0.02901357,95356.0,95355.0,0.2098432]
[1739918083688,0.36095736,95357.0,95355.0,0.2098432]
[1739918085297,0.36095736,95357.0,95355.0,0.2261804]
[1739918085496,0.36095736,95357.0,95356.0,0.0722]
[1739918086093,0.3608,95382.0,95378.0,0.2097926]
[1739918086287,0.3608,95388.0,95378.0,0.2097926]
[1739918086801,0.3608,95399.0,95398.0,0.2097486]
[1739918087901,0.00015727,95408.0,95407.0,0.2097288]
[1739918088103,0.02917084,95408.0,95407.0,0.2097288]
[1739918089303,0.02917084,95408.0,95389.0,0.00015727]
[1739918089506,0.38981357,95390.0,95389.0,0.00015727]
[1739918091100,0.38581357,95390.0,95389.0,0.00015727]
[1739918091603,0.38781357,95390.0,95389.0,0.00015727]
[1739918092697,0.38681357,95390.0,95389.0,0.00715727]
[1739918093803,0.59657977,95390.0,95389.0,0.00715727]
[1739918094307,0.59657977,95390.0,95389.0,0.00115727]
[1739918095799,0.59557977,95390.0,95389.0,0.00015727]
[1739918096003,0.59657977,95390.0,95389.0,0.00115727]
[1739918097407,0.59557977,95390.0,95389.0,0.00015727]
[1739918097606,0.59657977,95390.0,95389.0,0.00115727]
[1739918099607,0.43077203,95390.0,95389.0,0.00115727]
[1739918101403,0.42977203,95390.0,95389.0,0.00115727]
[1739918101608,0.43077203,95390.0,95389.0,0.00115727]
[1739918101804,0.22100583,95390.0,95389.0,0.00115727]
[1739918105004,0.22100583,95390.0,95389.0,0.21092567]
[1739918105709,0.22000583,95390.0,95389.0,0.21092567]
[1739918107001,0.19099226,95390.0,95389.0,0.21092567]
[1739918107407,0.19099226,95390.0,95389.0,0.20992567]
[1739918107618,0.19199226,95390.0,95389.0,0.21692567]
[1739918108000,0.19099226,95390.0,95389.0,0.21292567]
[1739918108706,0.19199226,95390.0,95389.0,0.21692567]
[1739918109100,0.19199226,95390.0,95389.0,0.20992567]
[1739918109309,0.19099226,95390.0,95389.0,0.00315727]
[1739918109607,0.44653479,95390.0,95389.0,0.00315727]
[1739918110605,0.44653479,95390.0,95389.0,0.00015727]
[1739918110915,0.44653479,95390.0,95389.0,0.00315727]
[1739918111109,0.42977203,95390.0,95389.0,0.00315727]
[1739918111814,0.42977203,95390.0,95389.0,0.00015727]
[1739918112111,0.42977203,95390.0,95389.0,0.00315727]
[1739918112499,0.42977203,95390.0,95389.0,0.00115727]
[1739918114617,0.59957977,95390.0,95389.0,0.00115727]
[1739918114919,0.2098058,95372.0,95371.0,0.00056]
[1739918115105,0.75061357,95372.0,95355.0,0.3072712]
[1739918115312,0.3608,95357.0,95355.0,0.3072712]
[1739918115502,0.23885457,95356.0,95355.0,0.3072712]
[1739918115708,0.23685457,95356.0,95355.0,0.3072712]
[1739918115903,0.209841,95356.0,95355.0,0.3072712]
[1739918116108,0.23685457,95356.0,95355.0,0.3072712]
[1739918116415,0.23685457,95356.0,95355.0,0.3132712]
[1739918116613,0.59765457,95356.0,95355.0,0.3132712]
[1739918116913,0.59765457,95356.0,95355.0,0.17045763]
[1739918116914,0.570641,95356.0,95355.0,0.17045763]
[1739918117522,0.570641,95356.0,95346.0,0.37026564]
[1739918117523,0.2098608,95347.0,95346.0,0.37026564]
[1739918117718,0.5706608,95347.0,95346.0,0.36970564]
[1739918117918,0.5676608,95347.0,95346.0,0.36970564]
[1739918118615,0.5666608,95347.0,95346.0,0.36970564]
[1739918119016,0.5666608,95347.0,95346.0,0.37170564]
[1739918119215,0.2098916,95333.0,95332.0,0.0748]
[1739918119418,0.3608,95333.0,95322.0,0.1461]
[1739918119608,0.3608,95323.0,95322.0,0.1461]
[1739918120314,0.3608,95323.0,95312.0,0.18652857]
[1739918120513,0.3608,95313.0,95312.0,0.18652857]
[1739918121614,0.3618,95313.0,95312.0,0.18652857]
[1739918122515,0.3618,95313.0,95279.0,0.2100103]
[1739918122708,0.3608,95301.0,95284.0,0.0768]
[1739918122913,0.46992,95301.0,95284.0,0.0768]
[1739918123413,0.46992,95301.0,95285.0,0.2099962]
[1739918124417,0.6798838,95301.0,95284.0,0.0768]
[1739918124614,0.3608,95285.0,95284.0,0.0768]
[1739918125815,0.3608,95285.0,95277.0,0.0716]
[1739918125816,0.3618,95285.0,95277.0,0.0716]
[1739918126214,0.3618,95285.0,95283.0,0.21]
[1739918126415,0.10904,95284.0,95283.0,0.21]
[1739918127210,0.10904,95284.0,95277.0,0.0716]
[1739918127623,0.3190405,95284.0,95277.0,0.0716]
[1739918127914,0.72340001,95285.0,95283.0,0.2100013]
[1739918128122,0.7216,95285.0,95277.0,0.0716]
[1739918128418,0.7216,95285.0,95281.0,0.2100045]
[1739918128419,0.10908,95284.0,95281.0,0.2100045]
[1739918128726,0.72240001,95285.0,95281.0,0.2100045]
[1739918128913,0.7216,95285.0,95284.0,0.2099995]
[1739918129216,0.83056,95285.0,95284.0,0.2099995]
[1739918130223,0.83048,95285.0,95284.0,0.2099995]
[1739918131025,0.46968,95285.0,95284.0,0.2099995]
[1739918131818,0.00015735,95291.0,95277.0,0.0716]
[1739918132019,0.3608,95288.0,95287.0,0.2099929]
[1739918134813,0.3608,95288.0,95287.0,0.22345704]
[1739918135207,0.3618,95288.0,95287.0,0.22345704]
[1739918135616,0.3618,95288.0,95287.0,0.2099929]
[1739918137916,0.3618,95288.0,95287.0,0.2854929]
[1739918140225,0.00015735,95291.0,95290.0,0.2099863]
[1739918140426,0.3608,95308.0,95307.0,0.2099489]
[1739918142121,0.0135034,95315.0,95307.0,0.01311368]
[1739918142320,0.0135034,95315.0,95311.0,0.20994]
[1739918143117,0.12668238,95317.0,95311.0,0.20994]
[1739918144523,0.00857461,95312.0,95311.0,0.20994]
[1739918145627,0.00015735,95317.0,95316.0,0.209929]
[1739918146635,0.3608,95330.0,95329.0,0.2099004]
[1739918146920,0.08568786,95339.0,95320.0,0.12652503]
[1739918147115,0.12652503,95340.0,95338.0,0.2098806]
[1739918147320,0.5706805,95339.0,95332.0,0.2098926]
[1739918147514,0.5706805,95339.0,95333.0,0.2098899]
[1739918148125,0.58369444,95339.0,95333.0,0.2098899]
[1739918148429,0.37381394,95339.0,95337.0,0.2098816]
[1739918148727,0.37481394,95339.0,95337.0,0.2098816]
[1739918149329,0.37381394,95339.0,95333.0,0.005]
[1739918149921,0.37381394,95339.0,95337.0,0.005]
[1739918151321,0.2098806,95338.0,95337.0,0.005]
[1739918152124,0.2098806,95338.0,95334.0,0.2098889]
[1739918152724,0.2098806,95338.0,95337.0,0.002]
[1739918153328,0.2108806,95338.0,95334.0,0.2118889]
[1739918153731,0.2098806,95338.0,95334.0,0.2098889]
[1739918153930,0.2098806,95338.0,95337.0,0.001]
[1739918155332,0.2098806,95338.0,95334.0,0.2098889]
[1739918155526,0.3608,95339.0,95334.0,0.002]
[1739918155733,0.2098832,95337.0,95334.0,0.002]
[1739918155928,0.2098832,95337.0,95329.0,0.2098997]
[1739918156130,0.2088832,95337.0,95328.0,0.0779]
[1739918156332,0.2088832,95337.0,95330.0,0.2098977]
[1739918156831,0.2088832,95337.0,95334.0,0.002]
[1739918157622,0.209887,95336.0,95334.0,0.002]
[1739918158229,0.209887,95336.0,95330.0,0.2098977]
[1739918159631,0.209887,95336.0,95328.0,0.0779]
[1739918159836,0.3608,95339.0,95332.0,0.2098933]
[1739918160628,0.5706799,95339.0,95332.0,0.2098933]
[1739918161328,0.3608,95339.0,95328.0,0.0779]
[1739918161532,0.3608,95339.0,95334.0,0.2098892]
[1739918162037,0.3608,95339.0,95326.0,0.00015735]
[1739918162233,0.2098934,95333.0,95330.0,0.2098975]
[1739918162538,0.3608,95339.0,95326.0,0.00015735]
[1739918162742,0.2098895,95334.0,95332.0,0.2098935]
[1739918163731,0.2098895,95334.0,95326.0,0.00015735]
[1739918164134,0.2098895,95334.0,95331.0,0.2098945]
[1739918164438,0.2098895,95334.0,95326.0,0.00015735]
[1739918164639,0.2098895,95334.0,95333.0,0.2098916]
[1739918166027,0.2108895,95334.0,95333.0,0.2098916]
[1739918167539,0.2098895,95334.0,95333.0,0.2118916]
[1739918168744,0.2098895,95334.0,95333.0,0.2128916]
[1739918169338,0.2108895,95334.0,95333.0,0.2128916]
[1739918170245,0.2108895,95334.0,95333.0,0.003]
[1739918171245,0.2098895,95334.0,95333.0,0.002]
[1739918171833,0.2108895,95334.0,95333.0,0.005]
[1739918172439,0.26193459,95334.0,95333.0,0.005]
[1739918173139,0.26193459,95334.0,95333.0,0.01]
[1739918174843,0.26093459,95334.0,95328.0,0.0777]
[1739918175042,0.26093459,95334.0,95333.0,0.003]
[1739918175546,0.26093459,95334.0,95333.0,0.005]
[1739918176143,0.26093459,95334.0,95333.0,0.003]
[1739918179546,0.35782372,95334.0,95333.0,0.003]
[1739918179751,0.35782372,95334.0,95328.0,0.2876022]
[1739918180049,0.35782372,95334.0,95333.0,0.003]
[1739918181238,0.35782372,95334.0,95328.0,0.0777]
[1739918181442,0.35882372,95334.0,95328.0,0.0837]
[1739918181947,0.35882372,95334.0,95328.0,0.0777]
[1739918182150,0.35782372,95334.0,95333.0,0.003]
[1739918182646,0.35782372,95334.0,95328.0,0.0827]
[1739918183946,0.14793422,95334.0,95330.0,0.2098961]
[1739918184346,0.14793422,95334.0,95333.0,0.003]
[1739918184755,0.14793422,95334.0,95328.0,0.0817]
[1739918184957,0.2098929,95333.0,95328.0,0.0817]
[1739918185260,0.35782712,95333.0,95328.0,0.0817]
[1739918186064,0.35482712,95333.0,95328.0,0.0777]
[1739918187356,0.2098942,95332.0,95328.0,0.0777]
[1739918187557,0.14793422,95333.0,95328.0,0.0807]
[1739918187758,0.3089544,95339.0,95328.0,0.0807]
[1739918187958,0.2098912,95334.0,95328.0,0.290602]
[1739918188257,0.2098926,95333.0,95328.0,0.290602]
[1739918188558,0.2098926,95333.0,95329.0,0.209899]
[1739918188856,0.2098926,95333.0,95328.0,0.0807]
[1739918188857,0.18897476,95329.0,95328.0,0.2906026]
[1739918189156,0.18897476,95329.0,95328.0,0.2876026]
[1739918189456,0.18897476,95329.0,95328.0,0.2906026]
[1739918190851,0.18897476,95329.0,95328.0,0.2876026]
[1739918191053,0.18597476,95329.0,95328.0,0.2876026]
[1739918191758,0.18597476,95329.0,95328.0,0.2906026]
[1739918192466,0.2098927,95333.0,95332.0,0.2098938]
[1739918193753,0.3089544,95339.0,95328.0,0.0797]
[1739918193961,0.2098997,95330.0,95328.0,0.0797]
[1739918194156,0.3089544,95339.0,95328.0,0.2896011]
[1739918194358,0.2098988,95330.0,95328.0,0.0797]
[1739918194860,0.2098988,95330.0,95328.0,0.0777]
[1739918195249,0.2098988,95330.0,95329.0,0.2099004]
[1739918195450,0.2098988,95330.0,95328.0,0.0777]
[1739918196058,0.2099026,95328.0,95326.0,0.00015735]
[1739918196558,0.0751,95327.0,95326.0,0.00015735]
[1739918198456,0.0761,95327.0,95326.0,0.00015735]
[1739918200051,0.2860048,95327.0,95326.0,0.00015735]
[1739918200667,0.38456492,95327.0,95326.0,0.00015735]
[1739918202255,0.2099444,95309.0,95308.0,0.0789]
[1739918203659,0.22249682,95309.0,95308.0,0.0789]
[1739918204361,0.3608,95313.0,95308.0,0.0789]
[1739918204563,0.3608,95313.0,95309.0,0.2934444]
[1739918204760,0.2099411,95311.0,95309.0,0.2934444]
[1739918205863,0.3608,95313.0,95309.0,0.0835]
[1739918206062,0.5707378,95313.0,95309.0,0.0835]
[1739918206264,0.58373615,95313.0,95309.0,0.0835]
[1739918206865,0.2099409,95311.0,95309.0,0.0835]
[1739918207066,0.2099422,95310.0,95309.0,0.0835]
[1739918210666,0.2099422,95310.0,95309.0,0.2934444]
[1739918211568,0.26098983,95312.0,95311.0,0.20994]
[1739918213767,0.2099414,95311.0,95309.0,0.0835]
[1739918214359,0.37379835,95313.0,95309.0,0.0835]
[1739918214555,0.37379835,95313.0,95312.0,0.2099378]
[1739918214758,0.37379835,95313.0,95308.0,0.0789]
[1739918214964,0.2099444,95309.0,95308.0,0.0789]
[1739918216065,0.2099606,95302.0,95300.0,0.0797]
[1739918216870,0.2224268,95302.0,95300.0,0.0797]
[1739918217464,0.2234268,95302.0,95300.0,0.0797]
[1739918217864,0.2099643,95300.0,95299.0,0.00015735]
[1739918219466,0.2109643,95300.0,95299.0,0.00015735]
[1739918219968,0.001,95300.0,95287.0,0.0841]
[1739918220173,0.2099896,95289.0,95287.0,0.0841]
[1739918221065,0.2099995,95284.0,95283.0,0.0825]
[1739918222063,0.2099995,95284.0,95274.0,0.1662]
[1739918222372,0.2100194,95275.0,95274.0,0.1662]
[1739918224371,0.2110194,95275.0,95274.0,0.1662]
[1739918224965,0.22386018,95275.0,95274.0,0.1662]
[1739918225673,0.01384078,95275.0,95274.0,0.1662]
[1739918225887,0.01284078,95275.0,95274.0,0.1662]
[1739918226074,0.3608,95279.0,95274.0,0.1662]
[1739918226270,0.10536,95278.0,95274.0,0.1662]
[1739918226770,0.3608,95279.0,95274.0,0.1662]
[1739918226980,0.10536,95278.0,95274.0,0.1662]
[1739918228068,0.5798,95295.0,95281.0,0.2100061]
[1739918228470,0.58060001,95295.0,95281.0,0.2100061]
[1739918228784,0.58060001,95295.0,95277.0,0.3608]
[1739918228785,0.21980001,95295.0,95288.0,0.3608]
[1739918229079,0.12652503,95300.0,95289.0,0.4592882]
[1739918229470,0.19047885,95292.0,95289.0,0.4592882]
[1739918229771,0.18847885,95292.0,95289.0,0.4592882]
[1739918229976,0.19247885,95292.0,95289.0,0.4592882]
[1739918231271,0.004,95292.0,95289.0,0.4592882]
[1739918232081,0.004,95292.0,95289.0,0.47205531]
[1739918233273,0.004,95292.0,95289.0,0.26206711]
[1739918233474,0.004,95292.0,95291.0,0.2099841]
[1739918235677,0.18847885,95305.0,95297.0,0.2099709]
[1739918236074,0.18847885,95305.0,95290.0,0.3608]
[1739918236276,0.18847885,95305.0,95304.0,0.5707555]
[1739918237574,0.19447885,95305.0,95304.0,0.5707555]
[1739918239474,0.006,95305.0,95304.0,0.5707555]
[1739918243485,0.00015744,95314.0,95313.0,0.2099356]
[1739918243787,0.0015744,95315.0,95313.0,0.5707356]
[1739918244286,0.18847885,95328.0,95327.0,0.2099048]
[1739918244475,0.18847885,95328.0,95327.0,0.5707048]
[1739918246277,0.19147885,95328.0,95327.0,0.5707048]
[1739918247083,0.19147885,95328.0,95327.0,0.58316451]